bitfinex-derivatives/quotes_ETHF0:USTF0_20241017
["timestamp","ask_amount","ask_price","bid_price","bid_amount"]
[1729167716705,0.4011,2611.7,2611.4,2.99]
[1729167716903,0.38301,2611.5,2611.4,0.38302]
[1729167718711,1.35857,2611.7,2611.2,4.7033]
[1729167719002,0.38304,2611.3,2611.2,1.17135]
[1729167721616,0.38304,2611.3,2611.2,0.7883]
[1729167722114,0.38306,2611.2,2611.1,0.77807]
[1729167722314,0.78876,2611.2,2611.1,1.57147]
[1729167722705,3.2078,2611.5,2611.1,1.57147]
[1729167722906,0.38306,2611.3,2611.2,0.38304]
[1729167723108,0.38306,2611.2,2611.1,1.57147]
[1729167723506,0.38306,2611.2,2610.8,3.2078]
[1729167723716,0.3831,2610.9,2610.8,3.2078]
[1729167723907,0.3831,2610.9,2610.8,3.59092]
[1729167724110,0.3831,2610.9,2610.8,3.2078]
[1729167724411,0.3831,2610.9,2610.8,3.59092]
[1729167724610,0.4057,2611.0,2610.7,1.2166]
[1729167724611,0.38312,2610.8,2610.7,1.2166]
[1729167724816,0.38312,2610.8,2610.7,1.19683]
[1729167725813,0.4057,2611.0,2610.7,4.6441]
[1729167726014,0.38309,2611.0,2610.9,3.3731]
[1729167727414,0.38312,2610.8,2610.7,3.2078]
[1729167727618,0.38312,2610.8,2610.7,3.59093]
[1729167727805,0.38312,2610.8,2610.7,3.2078]
[1729167728508,0.80982,2610.8,2610.7,3.2078]
[1729167733316,0.80982,2610.8,2610.7,3.59093]
[1729167733623,0.80982,2610.8,2610.7,3.2078]
[1729167734018,0.38313,2610.7,2610.6,0.76994]
[1729167736020,0.4267,2610.8,2610.6,0.76994]
[1729167736021,0.80982,2610.8,2610.7,0.38313]
[1729167737828,3.6325,2611.2,2610.7,2.99]
[1729167738125,0.3831,2611.0,2610.9,0.38308]
[1729167738518,0.95772,2611.1,2610.6,3.5946]
[1729167738723,0.38313,2610.7,2610.6,3.5946]
[1729167738921,0.38313,2610.7,2610.6,0.3868]
[1729167739219,0.38314,2610.6,2610.5,0.7951]
[1729167741327,0.38316,2610.5,2610.4,0.4006]
[1729167742125,0.38317,2610.4,2610.3,0.8042]
[1729167742328,0.77017,2610.4,2610.3,1.18739]
[1729167742722,0.77017,2610.4,2610.3,0.8042]
[1729167743322,0.77017,2610.4,2610.3,0.3928]
[1729167744931,0.77017,2610.4,2610.3,0.77599]
[1729167745327,0.77017,2610.4,2610.3,0.3928]
[1729167746341,0.3832,2610.2,2610.1,3.37321]
[1729167746540,0.3832,2610.2,2610.1,3.77791]
[1729167750440,0.3832,2610.3,2610.2,0.38319]
[1729167750841,0.38319,2610.3,2610.2,0.38319]
[1729167752942,0.7702,2610.4,2610.3,0.38319]
[1729167754240,0.7702,2610.4,2610.1,3.3947]
[1729167754543,0.3832,2610.2,2610.1,3.77791]
[1729167754935,0.387,2610.4,2610.1,3.3947]
[1729167755135,0.3832,2610.3,2610.2,0.38319]
[1729167757444,0.387,2610.4,2610.1,3.3947]
[1729167757648,0.77018,2610.4,2610.3,0.38319]
[1729167758034,0.387,2610.4,2610.3,0.38319]
[1729167758344,3.2078,2610.7,2610.1,0.4047]
[1729167758644,0.95791,2610.5,2610.1,0.4047]
[1729167758944,0.3832,2610.2,2610.1,0.7879]
[1729167759741,0.38322,2610.1,2610.0,3.59103]
[1729167760040,7.1558,2610.3,2609.9,0.4067]
[1729167760246,0.38326,2609.8,2609.7,0.3877]
[1729167760637,1.365,2610.0,2609.6,3.6145]
[1729167760934,0.79288,2609.7,2609.6,3.6145]
[1729167762846,0.79288,2609.7,2609.6,3.2078]
[1729167764141,10.62488,2609.7,2609.6,3.2078]
[1729167764348,0.38337,2609.1,2609.0,0.38337]
[1729167764547,0.95831,2609.4,2608.9,3.2078]
[1729167764548,0.38338,2609.0,2608.9,3.2078]
[1729167765453,0.38338,2609.0,2608.9,3.59119]
[1729167766143,0.38338,2609.0,2608.9,3.2078]
[1729167766552,0.38338,2609.0,2608.9,3.59119]
[1729167766743,0.38338,2609.1,2608.9,6.1978]
[1729167766949,0.4275,2609.3,2608.9,6.1978]
[1729167767249,0.81084,2609.3,2609.2,0.38335]
[1729167767553,0.38334,2609.3,2609.2,0.38335]
[1729167768438,0.38334,2609.3,2609.2,0.77055]
[1729167774541,0.38332,2609.5,2609.4,0.38331]
[1729167776745,0.4074,2609.6,2609.3,2.99]
[1729167776944,0.7907,2609.6,2609.5,0.38331]
[1729167777451,0.3833,2609.6,2609.5,0.38331]
[1729167778749,0.38332,2609.5,2609.4,0.38331]
[1729167779251,0.3936,2609.8,2609.3,3.94834]
[1729167779460,0.3936,2609.8,2609.6,0.38328]
[1729167779461,0.38329,2609.7,2609.6,0.38328]
[1729167780252,0.38332,2609.5,2609.4,0.3833]
[1729167780457,0.3936,2609.8,2609.2,4.575]
[1729167780659,0.38331,2609.6,2609.5,0.38329]
[1729167781757,0.38329,2609.7,2609.6,0.38328]
[1729167783761,0.38329,2609.7,2609.5,0.4175]
[1729167783762,0.38329,2609.6,2609.5,0.80079]
[1729167784257,0.77687,2609.8,2609.7,0.38328]
[1729167784463,5.08301,2610.3,2609.7,0.9582]
[1729167784654,0.4213,2610.1,2610.0,0.38322]
[1729167785052,0.3875,2610.4,2610.0,0.38322]
[1729167785361,0.38321,2610.2,2610.1,0.3832]
[1729167785964,0.38323,2610.1,2610.0,0.38322]
[1729167787158,0.38325,2609.9,2609.8,0.4192]
[1729167787855,0.3875,2610.4,2609.9,0.38325]
[1729167788164,0.38322,2610.2,2610.1,0.38321]
[1729167789864,4.16571,2610.5,2610.4,0.38317]
[1729167789865,3.59097,2610.5,2610.4,0.38317]
[1729167790060,0.38316,2610.5,2610.4,0.38317]
[1729167791153,0.38317,2610.4,2610.3,0.4051]
[1729167791362,2.99,2610.5,2609.8,2.99]
[1729167791661,0.38325,2610.0,2609.9,1.81833]
[1729167792659,0.3901,2610.2,2609.9,1.4351]
[1729167792860,0.3901,2610.2,2610.1,0.38322]
[1729167793162,0.3832,2610.3,2610.0,2.99]
[1729167793163,0.3832,2610.3,2610.2,0.38319]
[1729167794859,0.38319,2610.4,2610.3,0.38317]
[1729167795567,0.77327,2610.5,2610.4,0.38317]
[1729167796160,1.3754,2610.8,2610.6,0.38313]
[1729167796161,0.38314,2610.7,2610.6,0.38313]
[1729167796360,0.77794,2610.7,2610.6,0.38313]
[1729167797262,0.38314,2610.6,2610.5,0.80915]
[1729167799076,0.3948,2610.7,2610.5,0.426]
[1729167799261,40.8,2611.0,2610.6,0.4127]
[1729167799461,0.38313,2610.8,2610.7,0.38312]
[1729167800072,0.4132,2610.9,2610.6,0.4127]
[1729167800263,6.1978,2611.2,2610.9,0.38308]
[1729167800264,0.38309,2611.0,2610.9,0.38308]
[1729167802075,0.79629,2611.1,2611.0,0.38309]
[1729167802863,0.4132,2611.1,2610.8,0.4135]
[1729167803066,0.79628,2611.1,2611.0,0.38309]
[1729167803474,0.4132,2611.1,2611.0,0.38309]
[1729167803772,0.79627,2611.1,2611.0,0.38309]
[1729167804373,0.4132,2611.1,2611.0,0.38309]
[1729167804767,7.54417,2611.5,2611.0,0.4275]
[1729167804768,6.5866,2611.5,2611.0,0.4275]
[1729167804963,0.38305,2611.3,2611.2,0.38305]
[1729167805574,0.4082,2611.4,2611.1,0.4163]
[1729167805773,0.38304,2611.3,2611.2,0.79035]
[1729167807071,0.4082,2611.4,2611.2,0.4073]
[1729167807266,0.79124,2611.4,2611.3,0.38304]
[1729167808080,0.38304,2611.3,2611.2,0.79034]
[1729167808769,0.79123,2611.4,2611.3,0.38304]
[1729167808968,0.79123,2611.4,2611.2,0.79035]
[1729167808969,0.38304,2611.3,2611.2,0.79035]
[1729167810176,0.38304,2611.3,2611.2,0.4073]
[1729167810373,0.4082,2611.4,2610.9,3.2078]
[1729167810571,0.38308,2611.1,2611.0,0.38306]
[1729167813878,0.38308,2611.1,2611.0,1.76306]
[1729167814770,1.38,2611.2,2610.8,3.2078]
[1729167815078,0.38312,2610.9,2610.8,0.3831]
[1729167815778,0.38312,2610.9,2610.8,1.7631]
[1729167816183,0.38313,2610.9,2610.8,0.3831]
[1729167816373,0.38313,2610.9,2610.8,1.7631]
[1729167816674,1.38,2610.9,2610.7,1.76312]
[1729167816874,0.38314,2610.7,2610.6,0.38313]
[1729167817070,0.38314,2610.7,2610.6,1.76313]
[1729167817479,0.38314,2610.7,2610.6,1.38]
[1729167818488,0.38314,2610.6,2610.5,6.20325]
[1729167818783,0.79324,2610.6,2610.5,6.20325]
[1729167820181,2.17324,2610.6,2610.5,3.6208]
[1729167820376,0.79324,2610.6,2610.5,5.38396]
[1729167821984,0.79324,2610.6,2610.5,5.0008]
[1729167822685,0.79324,2610.6,2610.5,5.38396]
[1729167823087,0.79324,2610.6,2610.5,4.97096]
[1729167824883,0.79324,2610.6,2610.5,4.5878]
[1729167825079,1.19324,2610.6,2610.5,4.5878]
[1729167826085,1.19324,2610.6,2610.5,3.2078]
[1729167826293,1.19324,2610.6,2610.5,4.5878]
[1729167826684,11.02364,2610.6,2610.5,3.2078]
[1729167826992,0.95792,2610.5,2610.2,1.38]
[1729167827188,0.38322,2610.1,2610.0,1.8056]
[1729167827879,1.38,2610.1,2609.8,3.2078]
[1729167828188,0.38328,2609.7,2609.6,0.38329]
[1729167828386,0.38326,2609.9,2609.8,0.38325]
[1729167828684,0.38326,2609.9,2609.8,1.38]
[1729167829785,2.18772,2610.2,2609.6,3.2078]
[1729167830094,2.18772,2610.2,2609.6,3.59109]
[1729167830095,0.38328,2609.7,2609.6,3.59109]
[1729167831685,0.38326,2609.9,2609.8,0.38324]
[1729167835592,0.77953,2610.1,2610.0,0.38323]
[1729167835789,1.34977,2610.4,2609.7,6.1978]
[1729167835995,0.38324,2610.0,2609.9,0.80913]
[1729167836589,0.38324,2610.0,2609.9,0.4259]
[1729167836794,0.38324,2610.0,2609.9,0.80915]
[1729167838091,0.38324,2610.0,2609.9,0.4259]
[1729167838297,0.38324,2610.0,2609.9,0.80915]
[1729167838891,0.38324,2610.0,2609.9,0.4259]
[1729167839195,0.38324,2610.0,2609.9,0.80915]
[1729167839398,0.38324,2610.0,2609.9,0.4259]
[1729167839791,0.38324,2610.0,2609.9,0.80915]
[1729167840395,0.38324,2610.0,2609.9,0.4259]
[1729167840694,0.38326,2609.8,2609.7,3.59107]
[1729167843493,0.38326,2609.8,2609.7,3.2078]
[1729167844099,0.38326,2609.8,2609.7,3.59108]
[1729167844296,0.38326,2609.8,2609.7,3.2078]
[1729167844495,0.38328,2609.7,2609.6,0.3929]
[1729167844700,2.99,2609.7,2609.3,0.4168]
[1729167844908,0.38334,2609.3,2609.2,0.8252]
[1729167845200,0.38334,2609.3,2609.2,0.4189]
[1729167845795,0.38336,2609.1,2609.0,0.4168]
[1729167846302,0.38338,2609.0,2608.9,0.4189]
[1729167846495,0.77368,2609.0,2608.9,0.4189]
[1729167847099,0.38342,2608.8,2608.7,0.38342]
[1729167847297,0.38342,2608.8,2608.7,0.4034]
[1729167848389,0.38342,2608.8,2608.7,0.78682]
[1729167848901,0.38342,2608.8,2608.7,0.4034]
[1729167849503,0.3903,2609.0,2608.6,0.4265]
[1729167849799,0.38344,2608.6,2608.5,3.2078]
[1729167849999,0.38344,2608.6,2608.5,3.59125]
[1729167850394,0.38344,2608.7,2608.6,0.38343]
[1729167851197,0.4262,2608.8,2608.5,3.2078]
[1729167851403,0.38344,2608.6,2608.5,3.59124]
[1729167852003,0.38344,2608.6,2608.5,3.2078]
[1729167852199,0.38344,2608.6,2608.5,3.59125]
[1729167854509,0.38344,2608.6,2608.5,3.2078]
[1729167855204,0.38344,2608.6,2608.5,3.59125]
[1729167855709,0.38344,2608.6,2608.5,3.2078]
[1729167856003,0.38344,2608.6,2608.5,3.59125]
[1729167862918,0.38344,2608.6,2608.5,3.2078]
[1729167864315,4.21704,2608.6,2608.5,3.2078]
[1729167865718,13.20704,2608.6,2608.5,3.2078]
[1729167865913,0.3835,2608.3,2608.2,0.38349]
[1729167866114,0.3835,2608.3,2608.0,0.38352]
[1729167866115,0.38353,2608.1,2608.0,0.38352]
[1729167867219,0.38353,2608.0,2607.9,4.42833]
[1729167867417,0.38353,2608.0,2607.9,4.0448]
[1729167867723,0.38353,2608.0,2607.9,3.6224]
[1729167868614,0.3874,2608.1,2607.9,3.6224]
[1729167868817,0.38353,2608.0,2607.9,0.4146]
[1729167869022,7.2118,2608.1,2607.6,0.4193]
[1729167869216,0.38357,2607.8,2607.7,0.38356]
[1729167871022,0.38357,2607.7,2607.6,1.22567]
[1729167871218,0.38357,2607.7,2607.6,0.4228]
[1729167871219,0.79767,2607.7,2607.6,0.4228]
[1729167871621,0.4141,2607.7,2607.5,0.4232]
[1729167871826,0.4141,2607.7,2607.4,3.99261]
[1729167871827,0.3836,2607.5,2607.4,3.99261]
[1729167872126,0.38361,2607.4,2607.3,0.386]
[1729167872427,0.38363,2607.4,2607.3,0.38362]
[1729167873516,0.38361,2607.5,2607.4,0.38359]
[1729167873717,0.3836,2607.6,2607.5,0.38359]
[1729167874425,0.79768,2607.7,2607.6,0.38359]
[1729167874621,0.3836,2607.6,2607.5,0.38359]
[1729167875322,0.4141,2607.7,2607.5,0.38359]
[1729167875514,0.38359,2607.6,2607.5,0.38359]
[1729167876323,0.4141,2607.7,2607.4,0.4233]
[1729167876526,0.4141,2607.7,2607.4,0.80691]
[1729167876527,0.3836,2607.5,2607.4,0.80691]
[1729167878327,0.3836,2607.6,2607.5,0.38359]
[1729167879232,0.3836,2607.5,2607.4,0.8069]
[1729167880336,0.3836,2607.6,2607.5,0.38359]
[1729167882135,0.3836,2607.5,2607.4,0.8069]
[1729167883034,0.3836,2607.6,2607.5,0.38359]
[1729167883736,0.4141,2607.7,2607.4,0.4233]
[1729167883933,0.3836,2607.5,2607.4,0.8069]
[1729167886141,0.3836,2607.6,2607.5,0.38359]
[1729167889942,0.3836,2607.5,2607.4,2.1869]
[1729167890540,1.7636,2607.5,2607.4,0.4233]
[1729167891536,1.7636,2607.5,2607.4,0.80691]
[1729167892143,0.3836,2607.5,2607.4,2.18691]
[1729167893434,1.7636,2607.5,2607.4,0.80691]
[1729167894045,1.7636,2607.5,2607.4,1.22461]
[1729167898745,0.3836,2607.5,2607.4,2.60461]
[1729167900142,1.7636,2607.5,2607.4,1.22461]
[1729167900349,1.7636,2607.5,2607.4,0.841]
[1729167900750,1.7636,2607.5,2607.3,3.6355]
[1729167900957,1.76361,2607.4,2607.3,3.59143]
[1729167904359,1.76361,2607.4,2607.3,0.38363]
[1729167904554,3.2078,2608.1,2607.3,11.2152]
[1729167904768,1.38,2608.1,2607.9,0.38353]
[1729167905063,1.38,2608.0,2607.5,3.2078]
[1729167905357,1.76358,2607.7,2607.5,3.2078]
[1729167905556,1.76358,2607.7,2607.6,0.38359]
[1729167906456,0.3836,2607.5,2607.4,1.2092]
[1729167906959,0.3836,2607.5,2607.4,0.8256]
[1729167907160,0.3836,2607.5,2607.4,1.20921]
[1729167908862,0.38363,2607.3,2607.2,3.99963]
[1729167909164,0.38363,2607.3,2607.2,3.59144]
[1729167909759,0.38364,2607.2,2607.1,0.4101]
[1729167909959,0.38366,2607.1,2607.0,0.78077]
[1729167910160,0.38366,2607.1,2607.0,0.3971]
[1729167910360,0.4132,2607.2,2606.9,4.38908]
[1729167910361,0.38367,2607.0,2606.9,4.38908]
[1729167912557,0.38367,2607.0,2606.9,3.59149]
[1729167914261,0.38367,2607.1,2606.9,3.59149]
[1729167914760,0.38366,2607.1,2606.9,3.59149]
[1729167914961,0.38366,2607.1,2607.0,0.38367]
[1729167915364,10.21966,2607.1,2607.0,0.38367]
[1729167915565,4.21966,2607.1,2606.9,3.59147]
[1729167915760,1.2164,2607.2,2606.9,3.2078]
[1729167915959,2.99,2607.0,2606.6,3.624]
[1729167916161,0.38371,2606.8,2606.7,0.38371]
[1729167916963,0.76941,2606.8,2606.7,0.38371]
[1729167917156,0.3857,2606.8,2606.7,0.38371]
[1729167917367,0.76942,2606.8,2606.7,0.38372]
[1729167918961,1.17002,2606.8,2606.7,0.38372]
[1729167919468,0.3857,2606.8,2606.7,0.38372]
[1729167921466,0.38366,2607.1,2606.7,0.38372]
[1729167921673,0.79998,2607.0,2606.9,0.38369]
[1729167921862,0.4163,2607.0,2606.9,0.38369]
[1729167922265,0.79997,2607.0,2606.9,0.38369]
[1729167922864,3.6299,2607.3,2607.2,0.38364]
[1729167923069,0.3913,2607.4,2607.3,0.38363]
[1729167924169,0.3913,2607.4,2607.3,0.80933]
[1729167924673,5.50279579,2609.4,2608.0,0.38353]
[1729167924674,3.2078,2608.2,2608.0,0.38353]
[1729167924869,0.3913,2608.1,2607.6,3.59139]
[1729167925072,0.3913,2608.1,2608.0,0.38353]
[1729167925872,44.0078,2608.2,2607.8,0.8252]
[1729167926172,44.0078,2608.2,2608.1,0.38351]
[1729167926373,44.3913,2608.2,2608.1,0.38351]
[1729167926766,3.5913,2608.2,2608.1,0.38351]
[1729167927464,3.2078,2608.2,2608.1,0.38351]
[1729167928081,3.5913,2608.2,2608.1,0.38351]
[1729167928264,40.8,2608.3,2607.8,1.78408]
[1729167928469,40.8,2608.3,2608.1,0.3835]
[1729167928470,0.38351,2608.2,2608.1,0.3835]
[1729167928771,41.18349,2608.3,2608.2,0.3835]
[1729167928973,0.38351,2608.2,2608.1,0.3835]
[1729167929566,41.1835,2608.3,2608.2,0.3835]
[1729167930080,0.38351,2608.2,2608.1,0.3835]
[1729167930280,3.37351,2608.2,2608.1,0.3835]
[1729167931776,2.99,2608.2,2608.1,0.3835]
[1729167932070,40.8,2608.3,2607.8,1.78408]
[1729167932274,40.8,2608.3,2608.1,0.3835]
[1729167932275,0.38351,2608.2,2608.1,0.3835]
[1729167933678,41.1835,2608.3,2608.2,0.3835]
[1729167934281,45.0171,2608.3,2608.2,0.3835]
[1729167934476,51.0171,2608.3,2608.2,0.3835]
[1729167934677,40.8,2608.3,2608.2,0.3835]
[1729167935080,41.18348,2608.3,2608.2,0.3835]
[1729167935274,2.99,2608.4,2608.0,4.16662]
[1729167935577,3.37348,2608.4,2608.3,0.38348]
[1729167944188,0.38348,2608.3,2608.2,0.78708]
[1729167945484,40.8,2608.4,2608.2,0.4036]
[1729167945684,0.38347,2608.4,2608.3,0.38348]
[1729167947087,0.38347,2608.4,2608.3,0.78148]
[1729167949385,0.38347,2608.4,2608.3,0.398]
[1729167950393,0.38347,2608.4,2608.3,0.78148]
[1729167950587,0.38347,2608.4,2608.3,0.398]
[1729167950788,0.38348,2608.3,2608.2,0.78709]
[1729167952888,0.38348,2608.3,2608.2,0.38349]
[1729167955690,0.38348,2608.3,2608.1,0.4201]
[1729167955895,3.1435,2608.2,2608.1,0.4201]
[1729167956099,1.7635,2608.2,2608.1,0.4201]
[1729167957695,1.7635,2608.2,2608.1,0.80361]
[1729167957904,1.7635,2608.2,2608.1,0.4201]
[1729167958197,1.7635,2608.2,2608.1,0.80361]
[1729167958891,1.7635,2608.2,2608.1,0.4201]
[1729167959698,1.7635,2608.2,2608.1,0.80361]
[1729167960094,1.38,2608.2,2608.1,0.80361]
[1729167960397,1.7635,2608.2,2608.1,0.80361]
[1729167965492,1.7635,2608.2,2608.1,0.4201]
[1729167965796,1.7635,2608.2,2607.8,3.2078]
[1729167965797,0.38354,2607.9,2607.8,3.2078]
[1729167965997,1.76354,2607.9,2607.8,3.2078]
[1729167968188,1.38,2607.9,2607.6,0.3883]
[1729167968388,1.76357,2607.7,2607.6,0.77188]
[1729167969993,1.76357,2607.7,2607.6,0.3883]
[1729167971195,1.38,2607.7,2607.4,0.99607834]
[1729167971401,1.7636,2607.5,2607.4,0.38361]
[1729167971900,0.3836,2607.5,2607.4,0.38361]
[1729167973107,0.3836,2607.5,2607.4,1.76361]
[1729167974106,0.38357,2607.8,2607.7,0.38356]
[1729167974297,0.38356,2607.9,2607.8,0.38356]
[1729167974502,0.38356,2607.9,2607.8,0.79616]
[1729167976608,1.8048,2608.0,2607.8,0.4126]
[1729167976811,2.18834,2608.0,2607.9,0.38354]
[1729167978113,1.38,2608.0,2607.8,0.4126]
[1729167978313,1.76354,2607.9,2607.8,0.4126]
[1729167979414,1.76354,2607.9,2607.8,0.79616]
[1729167979613,1.76354,2607.9,2607.8,0.4126]
[1729167980412,1.76354,2607.9,2607.8,0.79616]
[1729167980718,1.76354,2607.9,2607.8,0.4126]
[1729167981316,1.76354,2607.9,2607.8,0.79616]
[1729167983423,1.76354,2607.9,2607.8,0.4126]
[1729167984119,0.38357,2607.7,2607.6,3.2078]
[1729167984421,0.38357,2607.7,2607.6,4.97139]
[1729167984915,0.38357,2607.7,2607.6,3.59139]
[1729167985322,0.38357,2607.7,2607.6,3.2078]
[1729167985522,0.38357,2607.7,2607.6,3.59139]
[1729167985724,0.38357,2607.7,2607.6,3.2078]
[1729167986214,0.38357,2607.7,2607.6,3.59139]
[1729167987525,0.95888,2607.9,2607.8,0.38354]
[1729167987526,1.76356,2607.9,2607.8,0.38354]
[1729167989326,0.38357,2607.8,2607.7,0.38356]
[1729167989629,1.76357,2607.8,2607.7,0.38356]
[1729167989832,1.38,2607.8,2607.6,3.2078]
[1729167990029,1.76357,2607.7,2607.6,3.59137]
[1729167990229,2.18467,2607.7,2607.6,3.59137]
[1729167990435,2.18467,2607.7,2607.6,3.2078]
[1729167990624,2.18467,2607.7,2607.6,3.59139]
[1729167993833,2.18467,2607.7,2607.6,3.2078]
[1729167994022,2.18467,2607.7,2607.6,3.59139]
[1729167994329,2.18467,2607.7,2607.6,3.2078]
[1729167995430,0.38361,2607.4,2607.3,0.427]
[1729167995620,0.38364,2607.2,2607.1,0.99607834]
[1729167995821,1.76364,2607.2,2607.1,0.99607834]
[1729167996028,1.76364,2607.2,2607.0,2.61823834]
[1729167996029,0.38366,2607.1,2607.0,2.61823834]
[1729167996219,1.76366,2607.1,2607.0,1.62216]
[1729167996423,1.38,2607.2,2607.0,1.2385]
[1729167996635,1.76366,2607.2,2607.1,0.38366]
[1729167997732,0.38366,2607.2,2607.1,0.38366]
[1729167997926,0.38366,2607.1,2607.0,1.62217]
[1729167998128,1.76366,2607.1,2607.0,1.62217]
[1729168000219,1.76366,2607.1,2607.0,0.8188]
[1729168000826,0.38367,2607.0,2606.9,3.2078]
[1729168001023,2.16807,2607.0,2606.9,3.2078]
[1729168001623,1.7844,2607.0,2606.8,0.4143]
[1729168001930,1.7844,2607.0,2606.8,3.2078]
[1729168001931,1.76369,2606.9,2606.8,3.2078]
[1729168002437,2.18329,2606.9,2606.8,3.2078]
[1729168002937,0.38372,2606.7,2606.6,1.60443]
[1729168003234,1.76371,2606.8,2606.7,0.38372]
[1729168003628,0.38372,2606.7,2606.6,2.98442]
[1729168007438,0.38371,2606.8,2606.7,0.3837]
[1729168008337,0.38371,2606.8,2606.7,1.7637]
[1729168009227,2.16808,2607.0,2606.9,0.38369]
[1729168009428,0.78808,2607.0,2606.9,0.38369]
[1729168009630,0.38369,2606.9,2606.8,1.7637]
[1729168009846,0.4044,2607.0,2606.7,4.5878]
[1729168010035,1.38,2606.8,2606.6,1.2207]
[1729168010236,0.38372,2606.7,2606.6,2.98442]
[1729168010938,0.38372,2606.7,2606.6,2.6007]
[1729168011148,1.76372,2606.7,2606.6,1.2207]
[1729168013842,1.76372,2606.7,2606.6,1.60443]
[1729168014842,0.38371,2606.9,2606.8,0.38369]
[1729168016047,1.76371,2606.9,2606.8,0.38369]
[1729168022455,0.38368,2607.0,2606.9,0.38369]
[1729168022746,1.76368,2607.0,2606.9,0.38369]
[1729168028152,0.4025,2607.2,2606.7,5.5471]
[1729168028352,1.76367,2607.1,2607.0,0.38366]
[1729168028553,1.76367,2607.1,2607.0,1.23356]
[1729168030245,1.76364,2607.3,2607.0,2.2299]
[1729168030442,0.78542,2607.4,2607.3,0.38363]
[1729168030647,0.78542,2607.4,2607.1,0.38365]
[1729168030648,0.38365,2607.3,2607.1,0.38365]
[1729168030845,0.38365,2607.3,2607.1,0.38366]
[1729168030846,1.76366,2607.2,2607.1,0.38366]
[1729168031857,0.38364,2607.3,2607.2,0.38364]
[1729168032052,0.38364,2607.3,2607.2,1.76364]
[1729168033754,0.78543,2607.4,2607.3,0.38363]
[1729168033949,0.78543,2607.4,2607.3,1.76363]
[1729168034347,0.4018,2607.4,2607.3,1.76363]
[1729168034549,0.38358,2607.7,2607.6,0.38357]
[1729168034746,0.38358,2607.7,2607.6,1.38]
[1729168034960,1.7847,2607.8,2607.5,1.38]
[1729168035153,0.38359,2607.6,2607.5,1.76359]
[1729168035959,1.76359,2607.6,2607.5,1.76359]
[1729168036248,1.76359,2607.6,2607.5,0.38359]
[1729168036658,0.38359,2607.6,2607.5,1.76359]
[1729168038462,1.76359,2607.6,2607.5,1.76359]
[1729168040354,1.76359,2607.6,2607.5,0.38359]
[1729168045653,1.38,2607.6,2607.5,1.76359]
[1729168045955,0.78827,2607.8,2607.7,0.38357]
[1729168046451,0.4047,2607.8,2607.7,0.38357]
[1729168046762,0.4047,2607.8,2607.7,1.76357]
[1729168047063,1.76354,2608.0,2607.9,0.38354]
[1729168047260,2.18934,2608.0,2607.9,0.38354]
[1729168049755,1.8058,2608.0,2607.8,2.6489]
[1729168049955,1.76354,2607.9,2607.8,3.03245]
[1729168053365,1.38,2607.9,2607.8,3.03245]
[1729168053572,1.8058,2608.0,2607.9,0.38354]
[1729168053964,2.18933,2608.0,2607.9,1.76354]
[1729168054860,0.4258,2608.0,2607.9,1.76354]
[1729168055060,1.76352,2608.1,2607.9,1.38]
[1729168055262,1.38,2608.1,2608.0,1.76353]
[1729168055467,1.76351,2608.1,2608.0,1.76353]
[1729168056072,1.76351,2608.1,2608.0,0.38353]
[1729168056367,0.95884,2608.0,2607.5,0.38359]
[1729168056570,1.76359,2607.6,2607.5,1.76359]
[1729168056779,0.38361,2607.5,2607.4,0.38361]
[1729168056973,0.77711,2607.5,2607.4,1.76361]
[1729168058774,0.38361,2607.4,2607.3,4.0566]
[1729168059181,1.76361,2607.4,2607.3,3.2078]
[1729168060371,0.38363,2607.3,2607.2,1.38]
[1729168061464,0.38363,2607.3,2607.2,1.76364]
[1729168064583,0.38362,2607.4,2607.3,0.38361]
[1729168064773,0.77711,2607.5,2607.4,0.38361]
[1729168065079,0.3935,2607.5,2607.4,2.17181]
[1729168066303,0.7771,2607.5,2607.4,2.17181]
[1729168069179,0.7771,2607.5,2607.4,0.79181]
[1729168069582,0.38361,2607.4,2607.3,1.38]
[1729168070280,0.38361,2607.4,2607.2,4.97143]
[1729168070281,0.38363,2607.3,2607.2,4.97143]
[1729168070480,1.76363,2607.3,2607.2,3.2078]
[1729168070885,1.76363,2607.3,2607.2,3.59144]
[1729168071380,0.38363,2607.3,2607.2,3.59144]
[1729168072285,0.38363,2607.3,2607.2,4.97144]
[1729168073080,0.77711,2607.5,2607.4,0.38361]
[1729168077079,0.38364,2607.3,2607.2,1.76363]
[1729168077388,0.38363,2607.4,2607.3,0.38361]
[1729168077785,0.38363,2607.3,2607.2,0.38364]
[1729168078991,2.2001,2607.4,2607.3,0.38363]
[1729168078992,0.38362,2607.4,2607.3,0.38363]
[1729168079289,0.38362,2607.4,2607.3,1.76363]
[1729168080389,0.38362,2607.4,2607.3,0.38363]
[1729168080586,0.3935,2607.5,2607.3,1.38]
[1729168080793,0.77711,2607.5,2607.4,0.78991]
[1729168081180,0.77711,2607.5,2607.4,1.19091]
[1729168083788,0.38364,2607.3,2607.2,0.38363]
[1729168085092,0.38362,2607.4,2607.3,0.38361]
[1729168088396,0.38363,2607.3,2607.2,0.38363]
[1729168094991,3.11842,2607.5,2607.1,1.7889]
[1729168094992,0.38364,2607.2,2607.1,0.4089]
[1729168095188,0.79684,2607.2,2607.1,0.4089]